[Event "Titled Tuesday Blitz January 10 Late 2023"]
[White "Sanal, Vahap"]
[Black "Theodorou, Nikolas"]
[WhiteFideId "6300545"]
[BlackFideId "4262875"]
[WhiteElo "2600"]
[BlackElo "2591"]
[Result "1-0"]
[Round "05"]
[TimeControl "180+2"]
[Date "2023.01.10"]
[WhiteClock "0:00:07"]
[BlackClock "0:00:05"]

1. e4 {[%clk 0:00:00]}  c5 {[%clk 0:00:00]} 2. Nf3 {[%clk 0:02:58]}  Nc6 {[%clk 0:03:00]} 3. Bb5 {[%clk 0:02:58]}  e6 {[%clk 0:03:01]} 4. O-O {[%clk 0:02:57]}  Nge7 {[%clk 0:03:01]} 5. Re1 {[%clk 0:02:55]}  h6 {[%clk 0:03:00]} 6. c3 {[%clk 0:02:53]}  a6 {[%clk 0:03:01]} 7. Ba4 {[%clk 0:02:30]}  b5 {[%clk 0:02:59]} 8. Bc2 {[%clk 0:02:28]}  c4 {[%clk 0:02:58]} 9. d4 {[%clk 0:02:28]}  cxd3 {[%clk 0:02:44]} 10. Bxd3 {[%clk 0:02:22]}  Bb7 {[%clk 0:02:45]} 11. a4 {[%clk 0:02:22]}  b4 {[%clk 0:02:45]} 12. c4 {[%clk 0:02:18]}  Ng6 {[%clk 0:02:42]} 13. b3 {[%clk 0:02:10]}  Bc5 {[%clk 0:02:40]} 14. Bb2 {[%clk 0:02:10]}  O-O {[%clk 0:02:40]} 15. Nbd2 {[%clk 0:02:05]}  Qb6 {[%clk 0:02:36]} 16. Rf1 {[%clk 0:01:58]}  Nce7 {[%clk 0:02:35]} 17. e5 {[%clk 0:01:53]}  d6 {[%clk 0:02:16]} 18. exd6 {[%clk 0:01:39]}  Bxd6 {[%clk 0:01:47]} 19. Ne4 {[%clk 0:01:36]}  Bc7 {[%clk 0:01:45]} 20. Re1 {[%clk 0:01:32]}  Rad8 {[%clk 0:01:38]} 21. Qc2 {[%clk 0:01:18]}  Nf5 {[%clk 0:01:37]} 22. Rad1 {[%clk 0:01:09]}  Nf4 {[%clk 0:01:35]} 23. Bf1 {[%clk 0:01:05]}  Rxd1 {[%clk 0:01:30]} 24. Rxd1 {[%clk 0:01:05]}  Qc6 {[%clk 0:01:30]} 25. Re1 {[%clk 0:01:05]}  Rd8 {[%clk 0:00:54]} 26. Ne5 {[%clk 0:01:02]}  Qe8 {[%clk 0:00:54]} 27. c5 {[%clk 0:00:58]}  Nd4 {[%clk 0:00:43]} 28. Bxd4 {[%clk 0:00:56]}  Rxd4 {[%clk 0:00:41]} 29. c6 {[%clk 0:00:49]}  Ba8 {[%clk 0:00:41]} 30. Nf3 {[%clk 0:00:38]}  Rd8 {[%clk 0:00:42]} 31. Rc1 {[%clk 0:00:39]}  a5 {[%clk 0:00:36]} 32. Bb5 {[%clk 0:00:38]}  Nd5 {[%clk 0:00:25]} 33. g3 {[%clk 0:00:38]}  Qe7 {[%clk 0:00:26]} 34. Kg2 {[%clk 0:00:35]}  Bb6 {[%clk 0:00:26]} 35. Rd1 {[%clk 0:00:29]}  Qa7 {[%clk 0:00:26]} 36. Ne5 {[%clk 0:00:26]}  Bxf2 {[%clk 0:00:21]} 37. Qxf2 {[%clk 0:00:22]}  Ne3+ {[%clk 0:00:16]} 38. Qxe3 {[%clk 0:00:18]}  Qxe3 {[%clk 0:00:10]} 39. Rxd8+ {[%clk 0:00:12]}  Kh7 {[%clk 0:00:11]} 40. Bd3 {[%clk 0:00:13]}  f5 {[%clk 0:00:12]} 41. Nf2 {[%clk 0:00:10]}  Qxe5 {[%clk 0:00:12]} 42. Rxa8 {[%clk 0:00:04]}  Qd5+ {[%clk 0:00:06]} 43. Kg1 {[%clk 0:00:04]}  Qxc6 {[%clk 0:00:07]} 44. Rxa5 {[%clk 0:00:05]}  Qc3 {[%clk 0:00:07]} 45. Bc4 {[%clk 0:00:06]}  e5 {[%clk 0:00:04]} 46. Rc5 {[%clk 0:00:05]}  Qd4 {[%clk 0:00:05]} 47. Rd5 {[%clk 0:00:03]}  Qe3 {[%clk 0:00:04]} 48. Rd1 {[%clk 0:00:03]}  e4 {[%clk 0:00:04]} 49. a5 {[%clk 0:00:02]}  Qc3 {[%clk 0:00:04]} 50. a6 {[%clk 0:00:02]}  e3 {[%clk 0:00:03]} 51. Nd3 {[%clk 0:00:02]}  Qc2 {[%clk 0:00:04]} 52. Re1 {[%clk 0:00:02]}  Qd2 {[%clk 0:00:02]} 53. a7 {[%clk 0:00:02]}  Qa2 {[%clk 0:00:02]} 54. Rxe3 {[%clk 0:00:02]}  Qxa7 {[%clk 0:00:02]} 55. Kf2 {[%clk 0:00:02]}  Qd4 {[%clk 0:00:03]} 56. Ke2 {[%clk 0:00:03]}  g5 {[%clk 0:00:04]} 57. Rf3 {[%clk 0:00:04]}  Kg6 {[%clk 0:00:04]} 58. Re3 {[%clk 0:00:04]}  Kf6 {[%clk 0:00:04]} 59. Re6+ {[%clk 0:00:05]}  Kg7 {[%clk 0:00:04]} 60. Re7+ {[%clk 0:00:05]}  Kf6 {[%clk 0:00:05]} 61. Re6+ {[%clk 0:00:05]}  Kg7 {[%clk 0:00:05]} 62. Re5 {[%clk 0:00:06]}  Kf6 {[%clk 0:00:06]} 63. Rd5 {[%clk 0:00:06]}  Qe4+ {[%clk 0:00:06]} 64. Kf2 {[%clk 0:00:07]}  f4 {[%clk 0:00:06]} 65. gxf4 {[%clk 0:00:08]}  gxf4 {[%clk 0:00:05]} 66. Rd6+ {[%clk 0:00:07]}  Kg7 {[%clk 0:00:06]} 67. Rd7+ {[%clk 0:00:08]}  Kf6 {[%clk 0:00:07]} 68. Rf7+ {[%clk 0:00:08]}  Kg5 {[%clk 0:00:06]} 69. h4+ {[%clk 0:00:08]}  Kh5 {[%clk 0:00:06]} 70. Rxf4 {[%clk 0:00:07]}  Qb7 {[%clk 0:00:05]} 71. Bf7+ {[%clk 0:00:07]} 1-0


[Site "https://www.chess.com"]

[Event "Titled Tuesday Blitz January 10 Late 2023"]
[White "Zakhartsov, Vladimir"]
[Black "Jobava, Baadur"]
[WhiteFideId "4145097"]
[BlackFideId "13601520"]
[WhiteElo "2552"]
[BlackElo "2578"]
[Result "1-0"]
[Round "05"]
[TimeControl "180+2"]
[Date "2023.01.10"]
[WhiteClock "0:00:11"]
[BlackClock "0:00:15"]

1. d4 {[%clk 0:00:00]}  d5 {[%clk 0:00:00]} 2. c4 {[%clk 0:02:53]}  dxc4 {[%clk 0:02:52]} 3. e3 {[%clk 0:02:51]}  e5 {[%clk 0:02:53]} 4. Bxc4 {[%clk 0:02:44]}  exd4 {[%clk 0:02:53]} 5. Nf3 {[%clk 0:02:40]}  Bb4+ {[%clk 0:02:54]} 6. Bd2 {[%clk 0:02:39]}  Bxd2+ {[%clk 0:02:53]} 7. Qxd2 {[%clk 0:02:37]}  Nc6 {[%clk 0:02:53]} 8. Bb5 {[%clk 0:02:35]}  Ne7 {[%clk 0:02:53]} 9. Nxd4 {[%clk 0:02:26]}  Bd7 {[%clk 0:02:49]} 10. Nc3 {[%clk 0:02:23]}  O-O {[%clk 0:02:48]} 11. Nxc6 {[%clk 0:02:20]}  Bxc6 {[%clk 0:02:45]} 12. Bxc6 {[%clk 0:02:04]}  Nxc6 {[%clk 0:02:40]} 13. Qxd8 {[%clk 0:02:02]}  Rfxd8 {[%clk 0:02:41]} 14. Ke2 {[%clk 0:01:58]}  Kf8 {[%clk 0:02:41]} 15. Rac1 {[%clk 0:01:59]}  Rd7 {[%clk 0:02:41]} 16. Rhd1 {[%clk 0:01:57]}  Rxd1 {[%clk 0:02:35]} 17. Rxd1 {[%clk 0:01:51]}  Ke8 {[%clk 0:02:24]} 18. g4 {[%clk 0:01:48]}  Rd8 {[%clk 0:02:05]} 19. Rc1 {[%clk 0:01:34]}  Ne5 {[%clk 0:01:59]} 20. h3 {[%clk 0:01:21]}  c6 {[%clk 0:01:52]} 21. Ne4 {[%clk 0:01:18]}  Ke7 {[%clk 0:01:46]} 22. f4 {[%clk 0:01:18]}  Nd7 {[%clk 0:01:41]} 23. g5 {[%clk 0:01:15]}  Nf8 {[%clk 0:01:38]} 24. Nc5 {[%clk 0:01:08]}  b6 {[%clk 0:01:17]} 25. Nd3 {[%clk 0:01:05]}  Rd6 {[%clk 0:01:17]} 26. Ne5 {[%clk 0:01:04]}  c5 {[%clk 0:01:03]} 27. b4 {[%clk 0:00:54]}  Ne6 {[%clk 0:01:00]} 28. h4 {[%clk 0:00:55]}  f6 {[%clk 0:00:52]} 29. Nc4 {[%clk 0:00:42]}  Rd5 {[%clk 0:00:41]} 30. b5 {[%clk 0:00:40]}  h5 {[%clk 0:00:39]} 31. a4 {[%clk 0:00:40]}  Rd8 {[%clk 0:00:30]} 32. a5 {[%clk 0:00:36]}  Rb8 {[%clk 0:00:25]} 33. axb6 {[%clk 0:00:28]}  axb6 {[%clk 0:00:25]} 34. Ra1 {[%clk 0:00:27]}  Nc7 {[%clk 0:00:26]} 35. Ra7 {[%clk 0:00:27]}  Kd8 {[%clk 0:00:26]} 36. Kf3 {[%clk 0:00:23]}  fxg5 {[%clk 0:00:26]} 37. hxg5 {[%clk 0:00:20]}  g6 {[%clk 0:00:22]} 38. Ne5 {[%clk 0:00:18]}  Kc8 {[%clk 0:00:22]} 39. Nxg6 {[%clk 0:00:18]}  Nxb5 {[%clk 0:00:17]} 40. Ne7+ {[%clk 0:00:16]}  Kd8 {[%clk 0:00:14]} 41. Nc6+ {[%clk 0:00:15]}  Kc8 {[%clk 0:00:15]} 42. Nxb8 {[%clk 0:00:15]}  Nxa7 {[%clk 0:00:15]} 43. g6 {[%clk 0:00:11]}  Kxb8 {[%clk 0:00:15]} 44. g7 {[%clk 0:00:11]}  Nc6 {[%clk 0:00:12]} 45. g8=Q+ {[%clk 0:00:12]}  Kb7 {[%clk 0:00:13]} 46. Qd5 {[%clk 0:00:12]}  Kc7 {[%clk 0:00:14]} 47. f5 {[%clk 0:00:11]}  c4 {[%clk 0:00:14]} 48. Qxc4 {[%clk 0:00:11]}  Kd6 {[%clk 0:00:14]} 49. Qe6+ {[%clk 0:00:11]}  Kc5 {[%clk 0:00:15]} 50. f6 {[%clk 0:00:11]}  Nd8 {[%clk 0:00:15]} 51. Qe7+ {[%clk 0:00:11]} 1-0


[Site "https://www.chess.com"]

[Event "Titled Tuesday Blitz January 10 Late 2023"]
[White "Martinez Alcantara, Jose Eduardo"]
[Black "Bryakin, Mikhail"]
[WhiteFideId "3805662"]
[BlackFideId "4165314"]
[WhiteElo "2619"]
[BlackElo "2455"]
[Result "1-0"]
[Round "05"]
[TimeControl "180+2"]
[Date "2023.01.10"]
[WhiteClock "0:01:36"]
[BlackClock "0:00:30"]

1. e4 {[%clk 0:00:00]}  d5 {[%clk 0:00:00]} 2. exd5 {[%clk 0:03:00]}  Qxd5 {[%clk 0:02:56]} 3. Nc3 {[%clk 0:03:00]}  Qe5+ {[%clk 0:02:57]} 4. Be2 {[%clk 0:03:01]}  Bg4 {[%clk 0:02:57]} 5. d4 {[%clk 0:03:01]}  Bxe2 {[%clk 0:02:58]} 6. Ngxe2 {[%clk 0:03:01]}  Qa5 {[%clk 0:02:59]} 7. b4 {[%clk 0:03:02]}  Qh5 {[%clk 0:02:59]} 8. Qd3 {[%clk 0:03:02]}  Nc6 {[%clk 0:02:59]} 9. d5 {[%clk 0:03:00]}  O-O-O {[%clk 0:02:44]} 10. Qb5 {[%clk 0:02:49]}  Ne5 {[%clk 0:01:36]} 11. Qa4 {[%clk 0:02:49]}  a6 {[%clk 0:01:20]} 12. b5 {[%clk 0:02:49]}  Qg4 {[%clk 0:01:12]} 13. Bf4 {[%clk 0:02:40]}  Qxg2 {[%clk 0:01:09]} 14. O-O-O {[%clk 0:01:48]}  Ng6 {[%clk 0:00:58]} 15. bxa6 {[%clk 0:01:48]}  Nxf4 {[%clk 0:00:35]} 16. a7 {[%clk 0:01:45]}  Nxe2+ {[%clk 0:00:30]} 17. Nxe2 {[%clk 0:01:35]}  Qg5+ {[%clk 0:00:30]} 18. f4 {[%clk 0:01:36]} 1-0


[Site "https://www.chess.com"]

[Event "Titled Tuesday Blitz January 10 Late 2023"]
[White "Talibov, Shiroghlan"]
[Black "Svane, Rasmus"]
[WhiteFideId "13429078"]
[BlackFideId "4657101"]
[WhiteElo "2359"]
[BlackElo "2623"]
[Result "1/2-1/2"]
[Round "05"]
[TimeControl "180+2"]
[Date "2023.01.10"]
[WhiteClock "0:00:06"]
[BlackClock "0:00:12"]

1. e4 {[%clk 0:00:00]}  c6 {[%clk 0:00:00]} 2. c4 {[%clk 0:02:58]}  d5 {[%clk 0:03:00]} 3. exd5 {[%clk 0:02:57]}  cxd5 {[%clk 0:03:00]} 4. d4 {[%clk 0:02:57]}  Nf6 {[%clk 0:03:01]} 5. Nc3 {[%clk 0:02:58]}  Nc6 {[%clk 0:03:02]} 6. Bg5 {[%clk 0:02:58]}  dxc4 {[%clk 0:03:02]} 7. d5 {[%clk 0:02:52]}  Ne5 {[%clk 0:02:52]} 8. Qd4 {[%clk 0:02:51]}  h6 {[%clk 0:02:51]} 9. Bh4 {[%clk 0:02:51]}  Ng6 {[%clk 0:02:52]} 10. Bg3 {[%clk 0:02:49]}  e5 {[%clk 0:02:49]} 11. Bxe5 {[%clk 0:02:44]}  Nxe5 {[%clk 0:02:48]} 12. Qxe5+ {[%clk 0:02:38]}  Be7 {[%clk 0:02:45]} 13. O-O-O {[%clk 0:02:37]}  Qd6 {[%clk 0:02:46]} 14. Qxd6 {[%clk 0:02:36]}  Bxd6 {[%clk 0:01:40]} 15. Bxc4 {[%clk 0:02:33]}  O-O {[%clk 0:01:41]} 16. Nf3 {[%clk 0:02:33]}  a6 {[%clk 0:01:36]} 17. Bd3 {[%clk 0:02:29]}  Bd7 {[%clk 0:01:36]} 18. Kb1 {[%clk 0:02:23]}  Rac8 {[%clk 0:01:21]} 19. Rhe1 {[%clk 0:02:23]}  Rc5 {[%clk 0:01:20]} 20. Nd4 {[%clk 0:02:23]}  g6 {[%clk 0:01:13]} 21. Ne4 {[%clk 0:02:19]}  Nxe4 {[%clk 0:01:12]} 22. Bxe4 {[%clk 0:02:16]}  Rfc8 {[%clk 0:01:12]} 23. h3 {[%clk 0:02:17]}  Kg7 {[%clk 0:01:10]} 24. Bf3 {[%clk 0:02:14]}  Kg8 {[%clk 0:01:10]} 25. a3 {[%clk 0:02:04]}  b5 {[%clk 0:00:55]} 26. Nc6 {[%clk 0:01:59]}  Kf8 {[%clk 0:00:50]} 27. g4 {[%clk 0:01:57]}  Rc4 {[%clk 0:00:48]} 28. Ne5 {[%clk 0:01:47]}  Bxe5 {[%clk 0:00:42]} 29. Rxe5 {[%clk 0:01:28]}  Rf4 {[%clk 0:00:40]} 30. Re3 {[%clk 0:01:29]}  Re8 {[%clk 0:00:38]} 31. Rxe8+ {[%clk 0:01:28]}  Kxe8 {[%clk 0:00:38]} 32. Rd3 {[%clk 0:01:24]}  Ke7 {[%clk 0:00:39]} 33. d6+ {[%clk 0:01:23]}  Kf6 {[%clk 0:00:37]} 34. Kc1 {[%clk 0:01:22]}  Ke5 {[%clk 0:00:37]} 35. Kd2 {[%clk 0:01:21]}  Rf6 {[%clk 0:00:36]} 36. b4 {[%clk 0:01:14]}  h5 {[%clk 0:00:23]} 37. Ke3 {[%clk 0:01:12]}  hxg4 {[%clk 0:00:17]} 38. hxg4 {[%clk 0:01:08]}  Rxd6 {[%clk 0:00:17]} 39. Rxd6 {[%clk 0:01:09]}  Kxd6 {[%clk 0:00:15]} 40. Kf4 {[%clk 0:00:59]}  Bc8 {[%clk 0:00:16]} 41. Kg5 {[%clk 0:00:56]}  Ke5 {[%clk 0:00:12]} 42. Bc6 {[%clk 0:00:55]}  Kd6 {[%clk 0:00:11]} 43. Be8 {[%clk 0:00:52]}  Ke7 {[%clk 0:00:10]} 44. Bc6 {[%clk 0:00:48]}  f6+ {[%clk 0:00:10]} 45. Kxg6 {[%clk 0:00:49]}  Bxg4 {[%clk 0:00:06]} 46. Bb7 {[%clk 0:00:41]}  Bd7 {[%clk 0:00:06]} 47. Bxa6 {[%clk 0:00:41]}  Be8+ {[%clk 0:00:07]} 48. Kf5 {[%clk 0:00:36]}  Bd7+ {[%clk 0:00:06]} 49. Kf4 {[%clk 0:00:34]}  Kd6 {[%clk 0:00:07]} 50. Bb7 {[%clk 0:00:33]}  Be6 {[%clk 0:00:06]} 51. Ke4 {[%clk 0:00:31]}  Bd7 {[%clk 0:00:06]} 52. Kd4 {[%clk 0:00:31]}  Be6 {[%clk 0:00:06]} 53. Be4 {[%clk 0:00:31]}  Bd7 {[%clk 0:00:06]} 54. Bd5 {[%clk 0:00:29]}  Be8 {[%clk 0:00:06]} 55. Bb3 {[%clk 0:00:29]}  Bd7 {[%clk 0:00:06]} 56. Ke4 {[%clk 0:00:27]}  Bc6+ {[%clk 0:00:07]} 57. Kf5 {[%clk 0:00:27]}  Ke7 {[%clk 0:00:04]} 58. Bc2 {[%clk 0:00:26]}  Bd7+ {[%clk 0:00:05]} 59. Kf4 {[%clk 0:00:23]}  Bc6 {[%clk 0:00:05]} 60. Be4 {[%clk 0:00:22]}  Be8 {[%clk 0:00:05]} 61. Bd5 {[%clk 0:00:21]}  Bd7 {[%clk 0:00:05]} 62. Ke4 {[%clk 0:00:21]}  Kd6 {[%clk 0:00:05]} 63. Kd4 {[%clk 0:00:20]}  Be8 {[%clk 0:00:05]} 64. f4 {[%clk 0:00:20]}  Bd7 {[%clk 0:00:05]} 65. Bb3 {[%clk 0:00:20]}  Be8 {[%clk 0:00:06]} 66. Bc2 {[%clk 0:00:17]}  Bc6 {[%clk 0:00:06]} 67. Bd3 {[%clk 0:00:11]}  Bd7 {[%clk 0:00:06]} 68. Ke4 {[%clk 0:00:11]}  Bc6+ {[%clk 0:00:06]} 69. Kf5 {[%clk 0:00:10]}  Ke7 {[%clk 0:00:06]} 70. Kg6 {[%clk 0:00:10]}  Be8+ {[%clk 0:00:07]} 71. Kg7 {[%clk 0:00:09]}  Bc6 {[%clk 0:00:07]} 72. Bf5 {[%clk 0:00:09]}  Be8 {[%clk 0:00:07]} 73. Be4 {[%clk 0:00:07]}  Bd7 {[%clk 0:00:08]} 74. Bd5 {[%clk 0:00:07]}  Be8 {[%clk 0:00:08]} 75. Bb3 {[%clk 0:00:07]}  Bc6 {[%clk 0:00:08]} 76. Kg6 {[%clk 0:00:06]}  Bd7 {[%clk 0:00:08]} 77. Bd5 {[%clk 0:00:06]}  Be8+ {[%clk 0:00:09]} 78. Kf5 {[%clk 0:00:05]}  Bd7+ {[%clk 0:00:09]} 79. Ke4 {[%clk 0:00:05]}  Kd6 {[%clk 0:00:09]} 80. Kd4 {[%clk 0:00:05]}  Be8 {[%clk 0:00:10]} 81. Be4 {[%clk 0:00:06]}  Bd7 {[%clk 0:00:10]} 82. Bd3 {[%clk 0:00:05]}  Bc6 {[%clk 0:00:10]} 83. Bc2 {[%clk 0:00:06]}  Bd7 {[%clk 0:00:11]} 84. Bb3 {[%clk 0:00:06]}  Be8 {[%clk 0:00:11]} 85. Kc3 {[%clk 0:00:06]}  Bd7 {[%clk 0:00:11]} 86. Ba2 {[%clk 0:00:06]}  Be8 {[%clk 0:00:11]} 87. Kb2 {[%clk 0:00:05]}  Bd7 {[%clk 0:00:11]} 88. Bb3 {[%clk 0:00:04]}  Be8 {[%clk 0:00:10]} 89. Kc3 {[%clk 0:00:04]}  Bd7 {[%clk 0:00:10]} 90. Bg8 {[%clk 0:00:05]}  Bc6 {[%clk 0:00:10]} 91. Kd4 {[%clk 0:00:05]}  Bd7 {[%clk 0:00:10]} 92. Bh7 {[%clk 0:00:05]}  Be8 {[%clk 0:00:10]} 93. Bc2 {[%clk 0:00:05]}  Bc6 {[%clk 0:00:10]} 94. Bd1 {[%clk 0:00:05]}  Bd7 {[%clk 0:00:11]} 95. Be2 {[%clk 0:00:05]}  Be8 {[%clk 0:00:11]} 96. Bf1 {[%clk 0:00:06]}  Bd7 {[%clk 0:00:11]} 97. Bg2 {[%clk 0:00:05]}  Be8 {[%clk 0:00:12]} 98. Bb7 {[%clk 0:00:05]}  Bd7 {[%clk 0:00:12]} 99. Ba6 {[%clk 0:00:05]}  Be8 {[%clk 0:00:12]} 100. Bb7 {[%clk 0:00:06]}  Bd7 {[%clk 0:00:12]} 101. Be4 {[%clk 0:00:06]}  Be8 {[%clk 0:00:12]} 102. Bd3 {[%clk 0:00:06]}  Bd7 {[%clk 0:00:12]} 103. Bc2 {[%clk 0:00:06]}  Be8 {[%clk 0:00:13]} 104. Bd1 {[%clk 0:00:06]}  Bd7 {[%clk 0:00:13]} 105. Kc3 {[%clk 0:00:06]}  Kd5 {[%clk 0:00:13]} 106. Bc2 {[%clk 0:00:05]}  Be8 {[%clk 0:00:12]} 107. Bd3 {[%clk 0:00:05]}  Bd7 {[%clk 0:00:12]} 108. Bc2 {[%clk 0:00:05]}  Be8 {[%clk 0:00:12]} 109. Bb1 {[%clk 0:00:05]}  Bd7 {[%clk 0:00:12]} 110. Bc2 {[%clk 0:00:06]} 1/2-1/2


[Site "https://www.chess.com"]

[Event "Titled Tuesday Blitz January 10 Late 2023"]
[White "Aravindh, Chithambaram VR."]
[Black "Sokolovsky, Yahli"]
[WhiteFideId "5072786"]
[BlackFideId "2820242"]
[WhiteElo "2633"]
[BlackElo "2461"]
[Result "0-1"]
[Round "05"]
[TimeControl "180+2"]
[Date "2023.01.10"]
[WhiteClock "0:00:02"]
[BlackClock "0:00:05"]

1. b3 {[%clk 0:00:00]}  d5 {[%clk 0:00:00]} 2. Bb2 {[%clk 0:03:00]}  Bf5 {[%clk 0:02:49]} 3. Nf3 {[%clk 0:03:00]}  e6 {[%clk 0:02:50]} 4. d3 {[%clk 0:02:59]}  Nc6 {[%clk 0:02:50]} 5. Nbd2 {[%clk 0:02:52]}  d4 {[%clk 0:02:41]} 6. g3 {[%clk 0:02:51]}  Nf6 {[%clk 0:02:41]} 7. Bg2 {[%clk 0:02:49]}  Bc5 {[%clk 0:02:34]} 8. O-O {[%clk 0:02:49]}  O-O {[%clk 0:02:34]} 9. Nh4 {[%clk 0:02:49]}  Bg6 {[%clk 0:02:34]} 10. Nxg6 {[%clk 0:02:44]}  hxg6 {[%clk 0:02:27]} 11. a3 {[%clk 0:02:43]}  a5 {[%clk 0:02:28]} 12. Ne4 {[%clk 0:02:42]}  Nxe4 {[%clk 0:02:21]} 13. Bxe4 {[%clk 0:02:19]}  Qd6 {[%clk 0:02:09]} 14. h4 {[%clk 0:02:20]}  Rab8 {[%clk 0:01:59]} 15. Qd2 {[%clk 0:02:16]}  Bb6 {[%clk 0:01:57]} 16. Qg5 {[%clk 0:02:09]}  Ne7 {[%clk 0:01:54]} 17. h5 {[%clk 0:02:02]}  f6 {[%clk 0:01:37]} 18. Qh4 {[%clk 0:01:36]}  g5 {[%clk 0:01:35]} 19. Qh1 {[%clk 0:01:36]}  c6 {[%clk 0:01:36]} 20. h6 {[%clk 0:01:36]}  g6 {[%clk 0:01:27]} 21. Rae1 {[%clk 0:01:33]}  Kh7 {[%clk 0:01:23]} 22. Bc1 {[%clk 0:01:22]}  e5 {[%clk 0:01:12]} 23. e3 {[%clk 0:01:20]}  Nd5 {[%clk 0:00:57]} 24. Bd2 {[%clk 0:01:07]}  dxe3 {[%clk 0:00:45]} 25. fxe3 {[%clk 0:00:47]}  f5 {[%clk 0:00:42]} 26. Bg2 {[%clk 0:00:46]}  Nf6 {[%clk 0:00:40]} 27. Bc1 {[%clk 0:00:37]}  Ng4 {[%clk 0:00:41]} 28. Bf3 {[%clk 0:00:29]}  Nf6 {[%clk 0:00:31]} 29. Qg2 {[%clk 0:00:28]}  Kxh6 {[%clk 0:00:32]} 30. Rd1 {[%clk 0:00:25]}  Kg7 {[%clk 0:00:26]} 31. d4 {[%clk 0:00:20]}  e4 {[%clk 0:00:25]} 32. Be2 {[%clk 0:00:18]}  Bc7 {[%clk 0:00:24]} 33. c4 {[%clk 0:00:19]}  Qxg3 {[%clk 0:00:15]} 34. Qxg3 {[%clk 0:00:16]}  Bxg3 {[%clk 0:00:12]} 35. Bb2 {[%clk 0:00:16]}  Rbd8 {[%clk 0:00:13]} 36. d5 {[%clk 0:00:16]}  cxd5 {[%clk 0:00:08]} 37. cxd5 {[%clk 0:00:15]}  Kf7 {[%clk 0:00:07]} 38. Bc4 {[%clk 0:00:16]}  Bd6 {[%clk 0:00:08]} 39. Bd4 {[%clk 0:00:14]}  Rh8 {[%clk 0:00:09]} 40. Rc1 {[%clk 0:00:11]}  Rh3 {[%clk 0:00:07]} 41. Kf2 {[%clk 0:00:11]}  Rh2+ {[%clk 0:00:06]} 42. Ke1 {[%clk 0:00:09]}  Rdh8 {[%clk 0:00:05]} 43. Bc3 {[%clk 0:00:08]}  Rg2 {[%clk 0:00:04]} 44. Be2 {[%clk 0:00:04]}  Rhh2 {[%clk 0:00:03]} 45. Rc2 {[%clk 0:00:03]}  Ng4 {[%clk 0:00:04]} 46. Bd4 {[%clk 0:00:04]}  Bg3+ {[%clk 0:00:03]} 47. Kd1 {[%clk 0:00:03]}  Nf2+ {[%clk 0:00:02]} 48. Kc1 {[%clk 0:00:03]}  Ke7 {[%clk 0:00:02]} 49. d6+ {[%clk 0:00:04]}  Bxd6 {[%clk 0:00:02]} 50. b4 {[%clk 0:00:02]}  Nd3+ {[%clk 0:00:02]} 51. Bxd3 {[%clk 0:00:02]}  exd3 {[%clk 0:00:02]} 52. Rxg2 {[%clk 0:00:02]}  Rxg2 {[%clk 0:00:03]} 53. bxa5 {[%clk 0:00:03]}  Bxa3+ {[%clk 0:00:04]} 54. Kd1 {[%clk 0:00:03]}  Bb4 {[%clk 0:00:04]} 55. Rh1 {[%clk 0:00:04]}  Ke6 {[%clk 0:00:04]} 56. e4 {[%clk 0:00:03]}  fxe4 {[%clk 0:00:03]} 57. a6 {[%clk 0:00:02]}  bxa6 {[%clk 0:00:02]} 58. Rh6 {[%clk 0:00:03]}  Kf5 {[%clk 0:00:02]} 59. Rh7 {[%clk 0:00:03]}  Rd2+ {[%clk 0:00:01]} 60. Kc1 {[%clk 0:00:03]}  Rc2+ {[%clk 0:00:02]} 61. Kd1 {[%clk 0:00:03]}  Rc4 {[%clk 0:00:03]} 62. Be3 {[%clk 0:00:03]}  Ba3 {[%clk 0:00:04]} 63. Rf7+ {[%clk 0:00:03]}  Kg4 {[%clk 0:00:03]} 64. Rf2 {[%clk 0:00:03]}  Bd6 {[%clk 0:00:04]} 65. Rg2+ {[%clk 0:00:03]}  Kf3 {[%clk 0:00:04]} 66. Ra2 {[%clk 0:00:04]}  Kxe3 {[%clk 0:00:04]} 67. Rg2 {[%clk 0:00:01]}  Bf4 {[%clk 0:00:04]} 68. Rg3+ {[%clk 0:00:02]}  Kd4 {[%clk 0:00:05]} 0-1


[Site "https://www.chess.com"]

[Event "Titled Tuesday Blitz January 10 Late 2023"]
[White "Caruana, Fabiano"]
[Black "Nazari, Arad"]
[WhiteFideId "2020009"]
[BlackFideId "12577324"]
[WhiteElo "2764"]
[BlackElo "2367"]
[Result "0-1"]
[Round "05"]
[TimeControl "180+2"]
[Date "2023.01.10"]
[WhiteClock "0:00:09"]
[BlackClock "0:00:12"]

1. e4 {[%clk 0:00:00]}  c5 {[%clk 0:00:00]} 2. Nf3 {[%clk 0:03:00]}  d6 {[%clk 0:02:58]} 3. Bb5+ {[%clk 0:03:00]}  Nd7 {[%clk 0:02:58]} 4. O-O {[%clk 0:02:58]}  a6 {[%clk 0:02:58]} 5. Bxd7+ {[%clk 0:02:58]}  Bxd7 {[%clk 0:02:58]} 6. d4 {[%clk 0:02:56]}  cxd4 {[%clk 0:02:58]} 7. Qxd4 {[%clk 0:02:55]}  Rc8 {[%clk 0:02:59]} 8. c4 {[%clk 0:02:55]}  e5 {[%clk 0:02:56]} 9. Qd3 {[%clk 0:02:53]}  b5 {[%clk 0:02:54]} 10. Na3 {[%clk 0:02:53]}  Qb6 {[%clk 0:02:55]} 11. Bd2 {[%clk 0:02:53]}  Nf6 {[%clk 0:02:52]} 12. Rac1 {[%clk 0:02:47]}  Be7 {[%clk 0:02:36]} 13. h3 {[%clk 0:02:42]}  Qb7 {[%clk 0:02:23]} 14. Rfe1 {[%clk 0:02:38]}  h6 {[%clk 0:02:18]} 15. b3 {[%clk 0:02:37]}  O-O {[%clk 0:02:14]} 16. Ba5 {[%clk 0:02:32]}  d5 {[%clk 0:02:12]} 17. exd5 {[%clk 0:02:20]}  Bxa3 {[%clk 0:01:51]} 18. Nxe5 {[%clk 0:01:56]}  Bxc1 {[%clk 0:01:38]} 19. Rxc1 {[%clk 0:01:55]}  bxc4 {[%clk 0:01:36]} 20. bxc4 {[%clk 0:01:56]}  Rfe8 {[%clk 0:01:13]} 21. Rb1 {[%clk 0:01:54]}  Bf5 {[%clk 0:01:12]} 22. Rxb7 {[%clk 0:01:39]}  Bxd3 {[%clk 0:00:40]} 23. Nxd3 {[%clk 0:01:26]}  Rxc4 {[%clk 0:00:40]} 24. Nb4 {[%clk 0:01:27]}  Rc5 {[%clk 0:00:41]} 25. Bc7 {[%clk 0:00:51]}  Nxd5 {[%clk 0:00:37]} 26. Nxd5 {[%clk 0:00:39]}  Rxd5 {[%clk 0:00:35]} 27. Rb6 {[%clk 0:00:38]}  Ra5 {[%clk 0:00:36]} 28. Rb2 {[%clk 0:00:34]}  Ra4 {[%clk 0:00:31]} 29. g4 {[%clk 0:00:33]}  Re1+ {[%clk 0:00:31]} 30. Kg2 {[%clk 0:00:29]}  Ra1 {[%clk 0:00:26]} 31. Rb8+ {[%clk 0:00:29]}  Kh7 {[%clk 0:00:27]} 32. Rb7 {[%clk 0:00:27]}  R1xa2 {[%clk 0:00:26]} 33. Bg3 {[%clk 0:00:26]}  f6 {[%clk 0:00:19]} 34. Bd6 {[%clk 0:00:19]}  Kg8 {[%clk 0:00:17]} 35. Rb8+ {[%clk 0:00:18]}  Kf7 {[%clk 0:00:17]} 36. Rb7+ {[%clk 0:00:18]}  Ke6 {[%clk 0:00:17]} 37. Bc5 {[%clk 0:00:18]}  Rc4 {[%clk 0:00:17]} 38. Be3 {[%clk 0:00:17]}  g5 {[%clk 0:00:13]} 39. Rb6+ {[%clk 0:00:17]}  Kf7 {[%clk 0:00:14]} 40. Rb7+ {[%clk 0:00:17]}  Kg6 {[%clk 0:00:12]} 41. Kf3 {[%clk 0:00:13]}  a5 {[%clk 0:00:13]} 42. Ra7 {[%clk 0:00:13]}  a4 {[%clk 0:00:13]} 43. Kg3 {[%clk 0:00:13]}  h5 {[%clk 0:00:13]} 44. gxh5+ {[%clk 0:00:11]}  Kxh5 {[%clk 0:00:13]} 45. Ra6 {[%clk 0:00:08]}  Kg6 {[%clk 0:00:14]} 46. Kf3 {[%clk 0:00:09]}  a3 {[%clk 0:00:13]} 47. Kg3 {[%clk 0:00:09]}  Ra1 {[%clk 0:00:13]} 48. Kf3 {[%clk 0:00:09]}  a2 {[%clk 0:00:12]} 0-1


[Site "https://www.chess.com"]